Workbook

Sheet TDSheet
A6: Примерное меню и пищевая ценность приготовляемых блюд (лист 1 )
A7: Рацион: дети из ММС,РП, ( 1-4 классы) | D7: День: | E7: понедельник | G7: Сезон: | I7: осень | L7: Рацион: дети из ММС, ( 5-11 классы) | O7: День: | P7: понедельник | R7: Сезон: | T7: осень
D8: Неделя: | E8: 1,3,5 | F8: Возрастная категория:7-11 лет | O8: Неделя: | P8: 1,3,5 | Q8: Возрастная категория: 12 лет и старше
A9: Прием пищи | B9: Наименование блюда | D9: Выход блюда | E9: Пищевые вещества (г) | H9: Энерге- тическая ценность (ккал) | I9: № рецептуры | J9: стоимость | L9: Прием пищи | M9: Наименование блюда | O9: Выход блюда | P9: Пищевые вещества (г) | S9: Энерге- тическая ценность (ккал) | T9: № рецептуры | U9: стоимость
E10: Б | F10: Ж | G10: У | P10: Б | Q10: Ж | R10: У
A11: завтрак | L11: завтрак
B12: Макаронные изделия с тертым сыром | D12: 150/10 | E12: 8 | F12: 6 | G12: 37 | H12: 237 | I12: 77,09 | M12: Макаронные изделия с тертым сыром | O12: 150/10 | P12: 8 | Q12: 6 | R12: 37 | S12: 237 | T12: 77,09
B13: Чай с сахаром | D13: 200 | G13: 9 | H13: 40 | I13: 92,02 | M13: Чай с сахаром | O13: 200 | R13: 9 | S13: 40 | T13: 92,02
B14: Хлеб пшеничный | D14: 50 | E14: 4 | F14: 1 | G14: 24 | H14: 123 | I14: 207,02 | M14: Хлеб пшеничный | O14: 50 | P14: 4 | Q14: 1 | R14: 24 | S14: 123 | T14: 207,02
B15: Сок фруктовый | D15: 100 | E15: 1 | G15: 26 | H15: 92 | I15: 191 | M15: Сок фруктовый | O15: 100 | P15: 1 | R15: 26 | S15: 92 | T15: 191
A17: Итого за завтрак | D17: =D16+D15+D14+D13+160 -> 510 | E17: =E16+E15+E14+E13+E12 -> 13 | F17: =F16+F15+F14+F13+F12 -> 7 | G17: 96 | H17: 492 | J17: 71.09 | L17: Итого за завтрак | O17: =O16+O15+O14+O13+160 -> 510 | P17: =P16+P15+P14+P13+P12 -> 13 | Q17: =Q16+Q15+Q14+Q13+Q12 -> 7 | R17: 96 | S17: 492 | U17: 78.02
A23: Примерное меню и пищевая ценность приготовляемых блюд (лист 2 )
A24: Рацион: дети из ММС,РП, ( 1-4 классы) | D24: День: | E24: вторник | G24: Сезон: | I24: осень | L24: Рацион: дети из ММС, ( 5-11 классы) | O24: День: | P24: вторник | R24: Сезон: | T24: осень
D25: Неделя: | E25: 1,3,5 | F25: Возрастная категория:7-11 лет | O25: Неделя: | P25: 1,3,5 | Q25: Возрастная категория: 12 лет и старше
A26: Прием пищи | B26: Наименование блюда | D26: Выход блюда | E26: Пищевые вещества (г) | H26: Энерге- тическая ценность (ккал) | I26: № рецептуры | J26: стоимость | L26: Прием пищи | M26: Наименование блюда | O26: Выход блюда | P26: Пищевые вещества (г) | S26: Энерге- тическая ценность (ккал) | T26: № рецептуры | U26: стоимость
E27: Б | F27: Ж | G27: У | P27: Б | Q27: Ж | R27: У
A28: завтрак | L28: завтрак
B30: Картофельное пюре | D30: 150/4 | E30: 3 | F30: 5 | G30: 22 | H30: 140 | I30: 107,08 | M30: Картофельное пюре | O30: 180/5 | P30: 4 | Q30: 5 | R30: 26 | S30: 164 | T30: 107.1
B31: Рыба,(филе) тушенная в томате с овощами | D31: 30/40 | E31: 6 | F31: 4 | G31: 1 | H31: 88 | I31: 187 | M31: Рыба,(филе) тушенная в томате с овощами | O31: 30/40 | P31: 6 | Q31: 4 | R31: 1 | S31: 88 | T31: 187
B32: Печенье Топленое молоко | D32: 18 | E32: 1 | F32: 2 | G32: 13 | H32: 77 | I32: 92,02 | M32: Печенье Топленое молоко | O32: 18 | P32: 1 | Q32: 2 | R32: 13 | S32: 77 | T32: 92,02
B33: Чай с сахаром | D33: 200 | G33: 9 | H33: 40 | I33: 92,02 | M33: Чай с сахаром | O33: 200 | R33: 9 | S33: 40 | T33: 92,02
B34: Хлеб пшеничный | D34: 50 | E34: 4 | F34: 1 | G34: 24 | H34: 123 | I34: 207,02 | M34: Хлеб пшеничный | O34: 50 | P34: 4 | Q34: 1 | R34: 24 | S34: 123 | T34: 207,02
A35: Итого за завтрак | D35: =D34+D33+D32+70+154 -> 492 | E35: =E34+E33+E32+E31+E30+E29 -> 14 | F35: =F34+F33+F32+F31+F30+F29 -> 12 | G35: 69 | H35: 468 | J35: 71.09 | L35: Итого за завтрак | O35: =O34+O33+O32+70+185 -> 523 | P35: =P34+P33+P32+P31+P30+P29 -> 15 | Q35: =Q34+Q33+Q32+Q31+Q30+Q29 -> 12 | R35: 73 | S35: 492 | U35: 78.02
A41: Примерное меню и пищевая ценность приготовляемых блюд (лист 3 )
A42: Рацион: дети из ММС,РП, ( 1-4 классы) | D42: День: | E42: среда | G42: Сезон: | I42: осень | L42: Рацион: дети из ММС, ( 5-11 классы) | O42: День: | P42: среда | R42: Сезон: | T42: осень
D43: Неделя: | E43: 1,3,5 | F43: Возрастная категория:7-11 лет | O43: Неделя: | P43: 1,3,5 | Q43: Возрастная категория: 12 лет и старше
A44: Прием пищи | B44: Наименование блюда | D44: Выход блюда | E44: Пищевые вещества (г) | H44: Энерге- тическая ценность (ккал) | I44: № рецептуры | J44: стоимость | L44: Прием пищи | M44: Наименование блюда | O44: Выход блюда | P44: Пищевые вещества (г) | S44: Энерге- тическая ценность (ккал) | T44: № рецептуры | U44: стоимость
E45: Б | F45: Ж | G45: У | P45: Б | Q45: Ж | R45: У
A46: завтрак | L46: завтрак
B47: Макаронные изделия отварные | D47: 150/4 | E47: 6 | F47: 4 | G47: 37 | H47: 204 | I47: 77,01 | M47: Макаронные изделия отварные | O47: 180/5 | P47: 7 | Q47: 4 | R47: 44 | S47: 246 | T47: 77.02
B48: Биточки из мяса цыпленка-бройлера | D48: 60 | E48: 10 | F48: 12 | G48: 6 | H48: 173 | I48: 61,06 | M48: Биточки из мяса цыпленка-бройлера | O48: 60 | P48: 10 | Q48: 12 | R48: 6 | S48: 173 | T48: 61,06
B49: Соус томатный | D49: 30 | F49: 1 | G49: 2 | H49: 22 | I49: 593,05 | M49: Соус томатный | O49: 50 | P49: 1 | Q49: 3 | R49: 3 | S49: 34 | T49: 593.07
B50: Напиток из свежих мороженных ягод | D50: 200/10 | E50: 1 | G50: 21 | H50: 89 | I50: 102,03 | M50: Напиток из свежих мороженных ягод | O50: 200/10 | P50: 1 | R50: 21 | S50: 89 | T50: 102,03
B51: Хлеб пшеничный | D51: 50 | E51: 4 | F51: 1 | G51: 24 | H51: 123 | I51: 207,02 | M51: Хлеб пшеничный | O51: 50 | P51: 4 | Q51: 1 | R51: 24 | S51: 123 | T51: 207,02
A52: Итого за завтрак | D52: =D51+210+D49+D48+154 -> 504 | E52: =E51+E50+E49+E48+E47 -> 21 | F52: =F51+F50+F49+F48+F47 -> 18 | G52: 90 | H52: 611 | J52: 71.09 | L52: Итого за завтрак | O52: =O51+210+O49+O48+185 -> 555 | P52: =P51+P50+P49+P48+P47 -> 23 | Q52: =Q51+Q50+Q49+Q48+Q47 -> 20 | R52: 98 | S52: 665 | U52: 78.02
A58: Примерное меню и пищевая ценность приготовляемых блюд (лист 4 )
A59: Рацион: дети из ММС,РП, ( 1-4 классы) | D59: День: | E59: четверг | G59: Сезон: | I59: осень | L59: Рацион: дети из ММС, ( 5-11 классы) | O59: День: | P59: четверг | R59: Сезон: | T59: осень
D60: Неделя: | E60: 1,3,5 | F60: Возрастная категория:7-11 лет | O60: Неделя: | P60: 1,3,5 | Q60: Возрастная категория: 12 лет и старше
A61: Прием пищи | B61: Наименование блюда | D61: Выход блюда | E61: Пищевые вещества (г) | H61: Энерге- тическая ценность (ккал) | I61: № рецептуры | J61: стоимость | L61: Прием пищи | M61: Наименование блюда | O61: Выход блюда | P61: Пищевые вещества (г) | S61: Энерге- тическая ценность (ккал) | T61: № рецептуры | U61: стоимость
E62: Б | F62: Ж | G62: У | P62: Б | Q62: Ж | R62: У
A63: завтрак | L63: завтрак
B64: Салат из свеклы с солеными огурцами | D64: 60 | E64: 1 | F64: 6 | G64: 4 | H64: 73 | I64: 23 | M64: Салат из свеклы с солеными огурцами | O64: 60 | P64: 1 | Q64: 6 | R64: 4 | S64: 73 | T64: 23
B65: Каша гречневая рассыпчатая | D65: 150/4 | E65: 9 | F65: 6 | G65: 39 | H65: 265 | I65: 65 | M65: Каша гречневая рассыпчатая | O65: 180/5 | P65: 10 | Q65: 7 | R65: 45 | S65: 288 | T65: 65.02
B66: Гуляш из говядины | D66: 20/50 | E66: 7 | F66: 9 | G66: 4 | H66: 123 | I66: 47,19 | M66: Гуляш из говядины | O66: 20/50 | P66: 7 | Q66: 9 | R66: 4 | S66: 123 | T66: 47,19
B67: Чай витаминный | D67: 200/5 | G67: 11 | H67: 39 | I67: 102,04 | M67: Чай витаминный | O67: 200/5 | R67: 11 | S67: 39 | T67: 102,04
B68: Хлеб пшеничный | D68: 50 | E68: 4 | F68: 1 | G68: 24 | H68: 123 | I68: 207 | M68: Хлеб пшеничный | O68: 50 | P68: 4 | Q68: 1 | R68: 24 | S68: 123 | T68: 207
A69: Итого за завтрак | D69: =D68+205+70+154+D64 -> 539 | E69: =E68+E67+E66+E65+E64 -> 21 | F69: =F68+F67+F66+F65+F64 -> 22 | G69: 82 | H69: 623 | J69: 71.09 | L69: Итого за завтрак | O69: =O68+205+70+185+60 -> 570 | P69: =P68+P67+P66+P65+P64 -> 22 | Q69: =Q68+Q67+Q66+Q65+Q64 -> 23 | R69: 88 | S69: 646 | U69: 78.02
A76: Примерное меню и пищевая ценность приготовляемых блюд (лист 5 )
A77: Рацион: дети из ММС,РП, ( 1-4 классы) | D77: День: | E77: пятница | G77: Сезон: | I77: осень | L77: Рацион: дети из ММС, ( 5-11 классы) | O77: День: | P77: пятница | R77: Сезон: | T77: осень
D78: Неделя: | E78: 1,3,5 | F78: Возрастная категория:7-11 лет | O78: Неделя: | P78: 1,3,5 | Q78: Возрастная категория: 12 лет и старше
A79: Прием пищи | B79: Наименование блюда | D79: Выход блюда | E79: Пищевые вещества (г) | H79: Энерге- тическая ценность (ккал) | I79: № рецептуры | J79: стоимость | L79: Прием пищи | M79: Наименование блюда | O79: Выход блюда | P79: Пищевые вещества (г) | S79: Энерге- тическая ценность (ккал) | T79: № рецептуры | U79: стоимость
E80: Б | F80: Ж | G80: У | P80: Б | Q80: Ж | R80: У
A81: завтрак | L81: завтрак
B82: Каша пшенная молочная | D82: 180/4,5 | E82: 6 | F82: 7 | G82: 27 | H82: 209 | I82: 73 | M82: Каша пшенная молочная | O82: 180/4,5 | P82: 6 | Q82: 7 | R82: 27 | S82: 209 | T82: 73
B83: Чай с сахаром | D83: 200 | G83: 9 | H83: 40 | I83: 92,02 | M83: Чай с сахаром | O83: 200 | R83: 9 | S83: 40 | T83: 92,02
B84: Бутерброд с сыром | D84: 50/10 | E84: 6 | F84: 3 | G84: 40 | H84: 155 | I84: 143,01 | M84: Бутерброд с сыром | O84: 50/10 | P84: 6 | Q84: 3 | R84: 40 | S84: 155 | T84: 143,01
A86: Итого за завтрак | D86: =60+D83+184.5 -> 444.5 | E86: =E85+E84+E83+E82 -> 12 | F86: =F85+F84+F83+F82 -> 10 | G86: 76 | H86: 404 | J86: 71.09 | L86: Итого за завтрак | O86: =60+O83+184.5 -> 444.5 | P86: =P85+P84+P83+P82 -> 12 | Q86: =Q85+Q84+Q83+Q82 -> 10 | R86: 76 | S86: 404 | U86: 78.02
A93: Примерное меню и пищевая ценность приготовляемых блюд (лист 6 ) | X93: Примерное меню и пищевая ценность приготовляемых блюд (лист 7 )
A94: Рацион: дети из ММС,РП, ( 1-4 классы) | D94: День: | E94: понедельник | G94: Сезон: | I94: осень | L94: Рацион: дети из ММС, ( 5-11 классы) | O94: День: | P94: понедельник | R94: Сезон: | T94: осень | W94: Рацион: дети из ММС,РП, ( 1-4 классы) | Z94: День: | AA94: вторник | AC94: Сезон: | AE94: осень | AH94: Рацион: дети из ММС, ( 5-11 классы) | AK94: День: | AL94: вторник | AN94: Сезон: | AP94: осень
D95: Неделя: | E95: 2.4 | F95: Возрастная категория:7-11 лет | O95: Неделя: | P95: 2.4 | Q95: Возрастная категория: 12 лет и старше | Z95: Неделя: | AA95: 2.4 | AB95: Возрастная категория:7-11 лет | AK95: Неделя: | AL95: 2.4 | AM95: Возрастная категория: 12 лет и старше
A96: Прием пищи | B96: Наименование блюда | D96: Выход блюда | E96: Пищевые вещества (г) | H96: Энерге- тическая ценность (ккал) | I96: № рецептуры | J96: стоимость | L96: Прием пищи | M96: Наименование блюда | O96: Выход блюда | P96: Пищевые вещества (г) | S96: Энерге- тическая ценность (ккал) | T96: № рецептуры | U96: стоимость | W96: Прием пищи | X96: Наименование блюда | Z96: Выход блюда | AA96: Пищевые вещества (г) | AD96: Энерге- тическая ценность (ккал) | AE96: № рецептуры | AF96: стоимость | AH96: Прием пищи | AI96: Наименование блюда | AK96: Выход блюда | AL96: Пищевые вещества (г) | AO96: Энерге- тическая ценность (ккал) | AP96: № рецептуры | AQ96: стоимость
E97: Б | F97: Ж | G97: У | P97: Б | Q97: Ж | R97: У | AA97: Б | AB97: Ж | AC97: У | AL97: Б | AM97: Ж | AN97: У
A98: 9.5 | L98: завтрак | W98: завтрак | AH98: завтрак
B99: Каша гречневая рассыпчатая | D99: 150/4 | E99: 9 | F99: 6 | G99: 39 | H99: 265 | I99: 65 | M99: Каша гречневая рассыпчатая | O99: 180/5 | P99: 10 | Q99: 7 | R99: 45 | S99: 288 | T99: 65.02 | X99: Каша молочная Дружба | Z99: 180/4,5 | AA99: 6 | AB99: 7.9 | AC99: 32.52 | AD99: 217.3 | AE99: 74.02 | AI99: Каша молочная Дружба | AK99: 180/4,5 | AL99: 6 | AM99: 7.9 | AN99: 32.52 | AO99: 217.3 | AP99: 74.02
B100: Котлеты Ладушки | D100: 60 | E100: 6 | F100: 10 | G100: 12 | H100: 194 | I100: 486,02 | M100: Котлеты Ладушки | O100: 60 | P100: 6 | Q100: 10 | R100: 12 | S100: 194 | T100: 486,02 | X100: Чай витаминный | Z100: 200/5 | AC100: 11 | AD100: 39 | AE100: 102.04 | AI100: Чай витаминный | AK100: 200/5 | AN100: 11 | AO100: 39 | AP100: 102.04
B101: Соус томатный | D101: 40 | E101: 1 | F101: 3 | G101: 3 | H101: 29 | I101: 593,06 | M101: Соус томатный | O101: 40 | P101: 1 | Q101: 3 | R101: 3 | S101: 29 | T101: 593,06 | X101: Хлеб пшеничный | Z101: 50 | AA101: 4 | AB101: 1 | AC101: 24 | AD101: 123 | AE101: 207 | AI101: Хлеб пшеничный | AK101: 50 | AL101: 4 | AM101: 1 | AN101: 24 | AO101: 123 | AP101: 207
B102: Напиток из свежих мороженных ягод | D102: 200/10 | E102: 1 | G102: 21 | H102: 89 | I102: 102,03 | M102: Напиток из свежих мороженных ягод | O102: 200/10 | P102: 1 | R102: 21 | S102: 89 | T102: 102,03
B103: Хлеб пшеничный | D103: 50 | E103: 4 | F103: 1 | G103: 24 | H103: 123 | I103: 207,02 | M103: Хлеб пшеничный | O103: 55 | P103: 4 | Q103: 1 | R103: 27 | S103: 135 | T103: 207.01
A104: Итого за завтрак | D104: =D103+210+D101+D100+154 -> 514 | E104: =E103+E102+E101+E100+E99 -> 21 | F104: =F103+F102+F101+F100+F99 -> 20 | G104: 99 | H104: 700 | J104: 71.09 | L104: Итого за завтрак | O104: =O103+210+O101+O100+185 -> 550 | P104: =P103+P102+P101+P100+P99 -> 22 | Q104: =Q103+Q102+Q101+Q100+Q99 -> 21 | R104: 108 | S104: 735 | U104: 78.02 | Z104: =Z101+205+184.5 -> 439.5 | AA104: =AA101+AA100+AA99 -> 10 | AB104: =AB101+AB100+AB99 -> 8.9 | AC104: 67.52 | AD104: 379.3 | AE104: 383.06 | AK104: =AK101+205+184.5 -> 439.5 | AL104: =AL101+AL100+AL99 -> 10 | AM104: =AM101+AM100+AM99 -> 8.9 | AN104: 67.52 | AO104: 379.3 | AP104: 383.06
A110: Примерное меню и пищевая ценность приготовляемых блюд (лист 8)
A111: Рацион: дети из ММС,РП, ( 1-4 классы) | D111: День: | E111: среда | G111: Сезон: | I111: осень | L111: Рацион: дети из ММС, ( 5-11 классы) | O111: День: | P111: среда | R111: Сезон: | T111: осень
D112: Неделя: | E112: 2.4 | F112: Возрастная категория:7-11 лет | O112: Неделя: | P112: 2.4 | Q112: Возрастная категория: 12 лет и старше
A113: Прием пищи | B113: Наименование блюда | D113: Выход блюда | E113: Пищевые вещества (г) | H113: Энерге- тическая ценность (ккал) | I113: № рецептуры | J113: стоимость | L113: Прием пищи | M113: Наименование блюда | O113: Выход блюда | P113: Пищевые вещества (г) | S113: Энерге- тическая ценность (ккал) | T113: № рецептуры | U113: стоимость
E114: Б | F114: Ж | G114: У | P114: Б | Q114: Ж | R114: У
A115: завтрак | L115: завтрак
B116: Макаронные изделия с тертым сыром | D116: 150/10 | E116: 8 | F116: 6.41 | G116: 37.06 | H116: 237.4 | I116: 77.09 | M116: Макаронные изделия с тертым сыром | O116: 180/10 | P116: 10 | Q116: 8 | R116: 44 | S116: 288 | T116: 77.04
B117: Сок фруктовый | D117: 100 | E117: 1 | G117: 13 | H117: 46 | I117: 50 | M117: Сок фруктовый | O117: 100 | P117: 1 | R117: 13 | S117: 46 | T117: 50
B118: Чай с сахаром | D118: 200 | G118: 9 | H118: 40 | I118: 92,02 | M118: Чай с сахаром | O118: 200 | R118: 9 | S118: 40 | T118: 92,02
B119: Хлеб пшеничный | D119: 50 | E119: 4 | F119: 1 | G119: 24 | H119: 123 | I119: 207 | M119: Хлеб пшеничный | O119: 55 | P119: 4 | Q119: 1 | R119: 27 | S119: 135 | T119: 207.01
A120: Итого за завтрак | D120: =D119+D118+D117+160 -> 510 | E120: =E119+E118+E117+E116 -> 13 | F120: =F119+F118+F117+F116 -> 7.41 | G120: 83.06 | H120: 446.4 | J120: 71.09 | L120: Итого за завтрак | O120: =O119+O118+O117+190 -> 545 | P120: =P119+P118+P117+P116 -> 15 | Q120: =Q119+Q118+Q117+Q116 -> 9 | R120: =R119+R118+R117+R116 -> 93 | S120: =S119+S118+S117+S116 -> 509 | U120: 78.02
A128: Примерное меню и пищевая ценность приготовляемых блюд (лист 9 )
A129: Рацион: дети из ММС,РП, ( 1-4 классы) | D129: День: | E129: четверг | G129: Сезон: | I129: осень | L129: Рацион: дети из ММС, ( 5-11 классы) | O129: День: | P129: четверг | R129: Сезон: | T129: осень
D130: Неделя: | E130: 2.4 | F130: Возрастная категория:7-11 лет | O130: Неделя: | P130: 2.4 | Q130: Возрастная категория: 12 лет и старше
A131: Прием пищи | B131: Наименование блюда | D131: Выход блюда | E131: Пищевые вещества (г) | H131: Энерге- тическая ценность (ккал) | I131: № рецептуры | J131: стоимость | L131: Прием пищи | M131: Наименование блюда | O131: Выход блюда | P131: Пищевые вещества (г) | S131: Энерге- тическая ценность (ккал) | T131: № рецептуры | U131: стоимость
E132: Б | F132: Ж | G132: У | P132: Б | Q132: Ж | R132: У
A133: завтрак | L133: завтрак
B134: Плов из мяса кур | D134: 150 | E134: 11 | F134: 19 | G134: 30 | H134: 320 | I134: 64,18 | M134: Плов из мяса кур | O134: 150 | P134: 11 | Q134: 19 | R134: 30 | S134: 320 | T134: 64,18
B135: Чай с сахаром | D135: 200 | G135: 9 | H135: 40 | I135: 92,02 | M135: Чай с сахаром | O135: 200 | R135: 9 | S135: 40 | T135: 92,02
B136: Сок фруктовый | D136: 200 | E136: 1 | G136: 26 | H136: 92 | I136: 191 | M136: Сок фруктовый | O136: 200 | P136: 1 | R136: 26 | S136: 92 | T136: 191
B137: Хлеб пшеничный | D137: 50 | E137: 4 | F137: 1 | G137: 24 | H137: 123 | I137: 207 | M137: Хлеб пшеничный | O137: 50 | P137: 4 | Q137: 1 | R137: 24 | S137: 123 | T137: 207
A138: Итого за завтрак | D138: =D137+D136+D135+D134 -> 600 | E138: =E137+E136+E135+E134 -> 16 | F138: =F137+F136+F135+F134 -> 20 | G138: 89 | H138: 575 | J138: 71.09 | L138: Итого за завтрак | O138: =O137+O136+O135+O134 -> 600 | P138: =P137+P136+P135+P134 -> 16 | Q138: 20 | R138: 89 | S138: 575 | U138: 78.02
A145: Примерное меню и пищевая ценность приготовляемых блюд (лист 10 )
A146: Рацион: дети из ММС,РП, ( 1-4 классы) | D146: День: | E146: пятница | G146: Сезон: | I146: осень | L146: Рацион: дети из ММС, ( 5-11 классы) | O146: День: | P146: пятница | R146: Сезон: | T146: осень
D147: Неделя: | E147: 2 | F147: Возрастная категория:7-11 лет | O147: Неделя: | P147: 2 | Q147: Возрастная категория: 12 лет и старше
A148: Прием пищи | B148: Наименование блюда | D148: Выход блюда | E148: Пищевые вещества (г) | H148: Энерге- тическая ценность (ккал) | I148: № рецептуры | J148: стоимость | L148: Прием пищи | M148: Наименование блюда | O148: Выход блюда | P148: Пищевые вещества (г) | S148: Энерге- тическая ценность (ккал) | T148: № рецептуры | U148: стоимость
E149: Б | F149: Ж | G149: У | P149: Б | Q149: Ж | R149: У
A150: завтрак | L150: завтрак
B151: Каша "Артек" молочная | D151: 150/4 | E151: 6 | F151: 6 | G151: 56 | H151: 276 | I151: 69 | M151: Каша "Артек" молочная | O151: 180/4,5 | P151: 7 | Q151: 7 | R151: 67 | S151: 355 | T151: 69.02
B152: Напиток из свежих мороженных ягод | D152: 200/10 | E152: 1 | G152: 21 | H152: 89 | I152: 102,03 | M152: Напиток из свежих мороженных ягод | O152: 200/10 | P152: 1 | R152: 21 | S152: 89 | T152: 102,03
B153: Буккены с картофелем | D153: 100 | E153: 4 | F153: 3 | G153: 25 | H153: 140 | I153: 112.03 | M153: Буккены с картофелем | O153: 100 | P153: 4 | Q153: 3 | R153: 25 | S153: 140 | T153: 112.03
B154: Хлеб пшеничный | D154: 50 | E154: 4 | F154: 1 | G154: 24 | H154: 123 | I154: 207,02 | M154: Хлеб пшеничный | O154: 55 | P154: 4 | Q154: 1 | R154: 27 | S154: 135 | T154: 207.01
A155: Итого за завтрак | D155: =D154+D153+210+154 -> 514 | E155: =E154+E153+E152+E151 -> 15 | F155: =F154+F153+F152+F151 -> 10 | G155: 126 | H155: 628 | J155: 71.09 | L155: Итого за завтрак | O155: =O154+O153+210+180+4.5 -> 549.5 | P155: =P154+P153+P152+P151 -> 16 | Q155: =Q154+Q153+Q152+Q151 -> 11 | R155: 140 | S155: 719 | U155: 78.02
A163: Примерное меню и пищевая ценность приготовляемых блюд (лист 10 )
A164: Рацион: дети из ММС,РП, ( 1-4 классы) | D164: День: | E164: пятница | G164: Сезон: | I164: осень | L164: Рацион: дети из ММС, ( 5-11 классы) | O164: День: | P164: пятница | R164: Сезон: | T164: осень
D165: Неделя: | E165: 2 | F165: Возрастная категория:7-11 лет | O165: Неделя: | P165: 2 | Q165: Возрастная категория: 12 лет и старше
A166: Прием пищи | B166: Наименование блюда | D166: Выход блюда | E166: Пищевые вещества (г) | H166: Энерге- тическая ценность (ккал) | I166: № рецептуры | J166: стоимость | L166: Прием пищи | M166: Наименование блюда | O166: Выход блюда | P166: Пищевые вещества (г) | S166: Энерге- тическая ценность (ккал) | T166: № рецептуры | U166: стоимость
E167: Б | F167: Ж | G167: У | P167: Б | Q167: Ж | R167: У
A168: завтрак | L168: завтрак
B169: Каша "Артек" молочная | D169: 150/4 | E169: 6 | F169: 6 | G169: 56 | H169: 276 | I169: 69 | M169: Каша "Артек" молочная | O169: 180/4,5 | P169: 7 | Q169: 7 | R169: 67 | S169: 355 | T169: 69.02
B170: Напиток из свежих мороженных ягод | D170: 200/10 | E170: 1 | G170: 21 | H170: 89 | I170: 102,03 | M170: Напиток из свежих мороженных ягод | O170: 200/10 | P170: 1 | R170: 21 | S170: 89 | T170: 102,03
B171: Фрукты | D171: 140 | E171: 1 | F171: 1 | G171: 14 | H171: 66 | I171: 101,02 | M171: Фрукты | O171: 140 | P171: 1 | Q171: 1 | R171: 14 | S171: 66 | T171: 101,02
B172: Хлеб пшеничный | D172: 50 | E172: 4 | F172: 1 | G172: 24 | H172: 123 | I172: 207,02 | M172: Хлеб пшеничный | O172: 55 | P172: 4 | Q172: 1 | R172: 27 | S172: 135 | T172: 207.01
A173: Итого за завтрак | D173: =D172+D171+210+154 -> 554 | E173: =E172+E171+E170+E169 -> 12 | F173: =F172+F171+F170+F169 -> 8 | G173: 115 | H173: 554 | J173: 71.09 | L173: Итого за завтрак | O173: =O172+O171+210+180+4.5 -> 589.5 | P173: =P172+P171+P170+P169 -> 13 | Q173: =Q172+Q171+Q170+Q169 -> 9 | R173: 129 | S173: 645 | U173: 78.02
A174: Итого за период | D174: =D155+D138+D120+D104+Z104+D86+D69+D52+D35+D17 -> 5067 | E174: =E155+E138+E120+E104+AA104+E86+E69+E52+E35+E17 -> 156 | F174: 135.31 | G174: 877.58 | H174: 5326.7 | L174: Итого за период | O174: =O155+O138+O120+O104+AK104+O86+O69+O52+O35+O17 -> 5286.5 | P174: =P155+P138+P120+P104+AL104+P86+P69+P52+P35+P17 -> 164 | Q174: 141.9 | R174: 928.52 | S174: 5616.3
A175: В среднем за период | D175: =D174/10 -> 506.7 | E175: =E174/10 -> 15.6 | F175: 13.531 | G175: 87.758 | H175: 532.67 | L175: В среднем за период | O175: =O174/10 -> 528.65 | P175: =P174/10 -> 16.4 | Q175: 14.19 | R175: 92.852 | S175: 561.63
